bitfinex-derivatives/quotes_BTCF0:USTF0_20241117
["timestamp","ask_amount","ask_price","bid_price","bid_amount"]
[1731864836891,0.05515,90657.0,90643.0,0.4555775]
[1731864837088,0.0623,90660.0,90643.0,0.0947775]
[1731864837089,0.055151,90655.0,90643.0,0.0947775]
[1731864837297,0.09992,90658.0,90644.0,0.02207327]
[1731864837506,0.055155,90648.0,90644.0,0.02207327]
[1731864837704,0.055157,90646.0,90644.0,0.02207327]
[1731864838101,0.055157,90646.0,90643.0,0.0947775]
[1731864838690,0.055154,90651.0,90643.0,0.0947775]
[1731864838899,0.055154,90651.0,90649.0,0.0947775]
[1731864839609,0.09996,90652.0,90647.0,0.055156]
[1731864839803,0.09996,90652.0,90641.0,0.02207723]
[1731864839804,0.055157,90645.0,90641.0,0.02207723]
[1731864840003,0.055159,90643.0,90641.0,0.02207723]
[1731864840208,0.09996,90652.0,90641.0,0.02207723]
[1731864840397,0.055155,90648.0,90641.0,0.02207723]
[1731864840714,0.055158,90644.0,90640.0,0.0001071]
[1731864840897,0.055154,90650.0,90640.0,0.0001071]
[1731864841206,0.46076,90652.0,90645.0,0.055156]
[1731864841996,0.46076,90652.0,90642.0,0.19706222]
[1731864842395,0.055157,90646.0,90642.0,0.26374904]
[1731864842607,0.46076,90652.0,90645.0,0.19704892]
[1731864842815,0.055158,90644.0,90640.0,0.0001071]
[1731864843003,0.05516,90640.0,90638.0,0.14725602]
[1731864843200,0.055161,90638.0,90632.0,0.3608]
[1731864843403,0.09996,90637.0,90632.0,0.3608]
[1731864843712,0.09996,90637.0,90622.0,0.0014]
[1731864843713,0.055169,90626.0,90622.0,0.0014]
[1731864843893,0.05517,90623.0,90617.0,0.00012394]
[1731864844099,0.09996,90622.0,90617.0,0.00012394]
[1731864845102,0.155132,90622.0,90617.0,0.00012394]
[1731864845313,0.09996,90622.0,90617.0,0.00012394]
[1731864845515,0.0947775,90621.0,90617.0,0.00012394]
[1731864845696,0.3608,90618.0,90601.0,0.0051]
[1731864845898,0.3608,90618.0,90604.0,0.02208132]
[1731864846220,0.0321,90617.0,90604.0,0.02208132]
[1731864846596,0.0947775,90614.0,90599.0,0.055185]
[1731864846899,0.055181,90607.0,90600.0,0.36093696]
[1731864847101,0.09996,90606.0,90600.0,0.36093696]
[1731864847902,0.055181,90607.0,90600.0,0.36093696]
[1731864848209,0.0321,90617.0,90609.0,0.055179]
[1731864848398,0.3608,90618.0,90612.0,0.0947775]
[1731864848902,0.3608,90618.0,90609.0,0.415978]
[1731864849107,0.3608,90618.0,90609.0,0.3608]
[1731864849298,0.09996,90620.0,90610.0,0.055178]
[1731864849500,0.09996,90620.0,90611.0,0.055177]
[1731864850308,0.09996,90620.0,90615.0,0.055175]
[1731864850511,0.0306,90624.0,90615.0,0.055175]
[1731864850817,0.09996,90619.0,90615.0,0.055175]
[1731864851014,0.09996,90619.0,90609.0,0.3608]
[1731864851215,0.09996,90619.0,90616.0,0.055174]
[1731864851416,0.09996,90619.0,90618.0,0.055173]
[1731864851909,0.1,90621.0,90618.0,0.055173]
[1731864852214,0.00165563,90629.0,90619.0,0.3608]
[1731864852423,0.00165563,90629.0,90628.0,0.5107445]
[1731864852800,0.0623,90641.0,90638.0,0.055161]
[1731864853305,0.0623,90641.0,90639.0,0.05516]
[1731864854005,0.36091943,90651.0,90647.0,0.055155]
[1731864854208,0.36091943,90651.0,90648.0,0.055155]
[1731864855714,0.36091943,90651.0,90649.0,0.055154]
[1731864856619,0.00011943,90651.0,90649.0,0.055154]
[1731864858115,0.00011943,90651.0,90638.0,0.35852654]
[1731864858410,0.00011943,90651.0,90649.0,0.055154]
[1731864871622,0.00011943,90651.0,90650.0,0.0947775]
[1731864873428,0.055142,90670.0,90668.0,0.055143]
[1731864874121,0.10356,90681.0,90662.0,0.0947775]
[1731864874329,0.0321,90673.0,90667.0,0.055144]
[1731864874625,0.0321,90673.0,90662.0,0.0947775]
[1731864874626,0.0321,90673.0,90668.0,0.055143]
[1731864874817,0.0321,90673.0,90669.0,0.055142]
[1731864875420,0.00014212,90674.0,90669.0,0.0947775]
[1731864875628,0.00014212,90674.0,90672.0,0.05514]
[1731864878525,0.00014212,90674.0,90673.0,0.00012079]
[1731864879619,0.00014212,90674.0,90673.0,0.09489829]
[1731864881629,0.00014212,90674.0,90673.0,0.45569829]
[1731864882122,0.00014212,90674.0,90673.0,0.09489829]
[1731864883024,0.00014212,90674.0,90673.0,0.00012079]
[1731864883232,0.00014212,90674.0,90659.0,0.055148]
[1731864883426,0.055144,90667.0,90660.0,0.055148]
[1731864883628,0.0303,90666.0,90660.0,0.055148]
[1731864884328,0.0303,90666.0,90658.0,0.09488115]
[1731864884528,0.0303,90666.0,90662.0,0.055147]
[1731864884827,0.0303,90666.0,90658.0,0.09488115]
[1731864885028,0.055148,90660.0,90658.0,0.00010365]
[1731864885828,0.055148,90659.0,90658.0,0.00010365]
[1731864888331,0.10880465,90659.0,90658.0,0.00010365]
[1731864889030,0.05365665,90659.0,90658.0,0.15003015]
[1731864889231,0.0308,90661.0,90660.0,0.055148]
[1731864889534,0.08445542,90661.0,90660.0,0.055148]
[1731864889727,0.0308,90661.0,90660.0,0.055148]
[1731864890032,0.19593551,90661.0,90660.0,0.055148]
[1731864894235,0.0308,90661.0,90660.0,0.055148]
[1731864895229,0.08445505,90661.0,90660.0,0.055148]
[1731864895437,0.0308,90661.0,90658.0,0.09488115]
[1731864895639,0.16518529,90659.0,90658.0,0.05525265]
[1731864895936,0.05365607,90659.0,90658.0,0.05525265]
[1731864896343,0.055148,90660.0,90658.0,0.05525265]
[1731864896842,0.0308,90661.0,90658.0,0.09488115]
[1731864897035,0.0308,90661.0,90660.0,0.055148]
[1731864898234,0.055142,90670.0,90666.0,0.1499215]
[1731864898836,0.00014212,90674.0,90668.0,0.055143]
[1731864899027,0.00014212,90674.0,90666.0,0.0947775]
[1731864899231,0.41594,90673.0,90669.0,0.055142]
[1731864899444,0.05514,90673.0,90669.0,0.055142]
[1731864899946,0.00014212,90674.0,90668.0,0.055143]
[1731864900434,0.055142,90669.0,90667.0,0.26319661]
[1731864900634,0.00014212,90674.0,90658.0,0.26330026]
[1731864900635,0.055148,90661.0,90658.0,0.26330026]
[1731864900941,0.055148,90660.0,90658.0,0.00010365]
[1731864901441,0.0331,90659.0,90658.0,0.00010365]
[1731864904047,0.08675703,90659.0,90658.0,0.00010365]
[1731864904441,0.0331,90659.0,90658.0,0.00010365]
[1731864905945,0.19828942,90659.0,90658.0,0.00010365]
[1731864909247,0.0331,90659.0,90640.0,0.26829661]
[1731864909553,0.055155,90648.0,90640.0,0.04012149]
[1731864909741,0.055155,90648.0,90639.0,0.3608]
[1731864909944,0.2204004,90648.0,90639.0,0.3608]
[1731864910254,0.1652454,90647.0,90639.0,0.3608]
[1731864910849,0.2204004,90648.0,90639.0,0.3608]
[1731864911250,0.1652454,90646.0,90639.0,0.3608]
[1731864911451,0.055158,90644.0,90641.0,0.26319661]
[1731864911762,0.055159,90642.0,90639.0,0.62399661]
[1731864911943,0.055159,90642.0,90640.0,0.26319661]
[1731864912254,0.055159,90642.0,90641.0,0.26319661]
[1731864912648,0.055159,90642.0,90640.0,0.26319661]
[1731864913349,0.055159,90642.0,90641.0,0.26319661]
[1731864913551,0.055159,90642.0,90640.0,0.26319661]
[1731864914357,0.055159,90642.0,90639.0,0.3608]
[1731864915856,0.05516,90640.0,90637.0,9.346e-05]
[1731864919954,0.095853,90640.0,90637.0,9.346e-05]
[1731864920961,0.05516,90640.0,90637.0,9.346e-05]
[1731864923362,0.055161,90638.0,90637.0,9.346e-05]
[1731864932872,0.152641,90638.0,90637.0,9.346e-05]
[1731864933267,0.483641,90638.0,90637.0,9.346e-05]
[1731864933470,0.483641,90638.0,90623.0,0.26319661]
[1731864933471,0.05517,90624.0,90623.0,0.26319661]
[1731864933776,0.055173,90618.0,90617.0,0.26319661]
[1731864933970,0.055173,90618.0,90611.0,0.32770133]
[1731864933971,0.055175,90615.0,90614.0,0.26319661]
[1731864934466,9.528e-05,90615.0,90611.0,0.26319661]
[1731864934665,0.055177,90612.0,90611.0,0.26319661]
[1731864935073,0.055178,90611.0,90610.0,0.26485199]
[1731864935459,0.055178,90611.0,90610.0,0.00165538]
[1731864936469,9.528e-05,90615.0,90610.0,0.00165538]
[1731864936861,0.055177,90613.0,90610.0,0.00165538]
[1731864937068,0.09748,90612.0,90610.0,0.00165538]
[1731864937866,0.10138,90612.0,90610.0,0.00165538]
[1731864938177,0.156557,90612.0,90610.0,0.00165538]
[1731864938363,0.055178,90611.0,90610.0,0.26485199]
[1731864940768,0.055178,90611.0,90610.0,0.00165538]
[1731864941271,0.059078,90611.0,90610.0,0.00165538]
[1731864944886,0.055184,90601.0,90600.0,0.00011778]
[1731864945783,0.152664,90601.0,90600.0,0.00011778]
[1731864948879,0.19223775,90601.0,90600.0,0.00011778]
[1731864949273,0.3608,90603.0,90600.0,0.00011778]
[1731864949592,0.0039,90611.0,90602.0,0.3608]
[1731864949778,0.3608,90621.0,90610.0,0.055178]
[1731864949779,0.0039,90614.0,90610.0,0.055178]
[1731864950703,0.0039,90614.0,90603.0,0.0623]
[1731864950871,0.0039,90614.0,90604.0,0.055182]
[1731864951075,0.0039,90614.0,90603.0,0.0623]
[1731864951483,0.0039,90614.0,90603.0,0.32549661]
[1731864951688,0.0039,90614.0,90613.0,0.055176]
[1731864951877,9.528e-05,90615.0,90614.0,0.055176]
[1731864951878,0.00399528,90615.0,90614.0,0.055176]
[1731864952084,0.00399528,90615.0,90614.0,0.087076]
[1731864952384,0.04090297,90627.0,90616.0,0.055174]
[1731864952578,0.0947775,90622.0,90615.0,0.26283112]
[1731864952781,0.3608,90629.0,90628.0,0.055167]
[1731864952990,0.3608,90638.0,90628.0,0.0947775]
[1731864953296,0.3608,90638.0,90630.0,0.055166]
[1731864953493,0.0001332,90632.0,90630.0,0.67879712]
[1731864953991,0.0001332,90632.0,90630.0,0.415966]
[1731864955492,0.3608,90649.0,90631.0,0.331]
[1731864955793,0.3608,90649.0,90645.0,0.055156]
[1731864955977,0.3608,90649.0,90646.0,0.0307]
[1731864956581,8.822e-05,90648.0,90647.0,0.055156]
[1731864959692,8.822e-05,90648.0,90646.0,0.0307]
[1731864960695,0.0947775,90647.0,90635.0,0.055163]
[1731864961279,0.14940322,90648.0,90628.0,0.055167]
[1731864961280,0.0947775,90640.0,90628.0,0.055167]
[1731864961494,0.3608,90642.0,90628.0,0.055167]
[1731864961495,0.0947775,90632.0,90628.0,0.055167]
[1731864961684,0.0947775,90632.0,90624.0,0.033]
[1731864962498,0.0947775,90632.0,90626.0,0.055168]
[1731864963391,0.3608,90642.0,90626.0,0.0947775]
[1731864963592,8.822e-05,90648.0,90638.0,0.055161]
[1731864963794,8.822e-05,90648.0,90646.0,0.055156]
[1731864973491,8.822e-05,90648.0,90645.0,0.3608]
[1731864974296,0.055156,90647.0,90645.0,0.3608]
[1731864974493,8.822e-05,90648.0,90645.0,0.3608]
[1731864974690,8.822e-05,90648.0,90647.0,0.055156]
[1731864985700,8.822e-05,90648.0,90647.0,0.45469614]
[1731864986604,8.822e-05,90648.0,90647.0,0.055156]
[1731864989807,8.822e-05,90648.0,90645.0,0.3608]
[1731864990210,8.822e-05,90648.0,90647.0,0.26339855]
[1731864991808,8.822e-05,90648.0,90645.0,0.3608]
[1731864992815,0.13214952,90646.0,90643.0,0.19773988]
[1731864993020,0.055159,90641.0,90639.0,0.19773988]
[1731864993212,0.49309088,90640.0,90635.0,0.19773988]
[1731864993405,0.055162,90636.0,90635.0,0.19773988]
[1731864993717,0.055164,90634.0,90626.0,0.0051]
[1731864993913,0.16533624,90630.0,90628.0,0.055167]
[1731864994614,0.055171,90622.0,90621.0,0.0051]
[1731864994820,0.14845483,90622.0,90610.0,0.0051]
[1731864995121,0.055179,90609.0,90607.0,0.00165544]
[1731864995318,0.05368608,90608.0,90607.0,0.00165544]
[1731864995504,0.055179,90609.0,90607.0,0.00165544]
[1731864995816,0.0325,90608.0,90607.0,0.00165544]
[1731864996411,0.16449534,90608.0,90607.0,0.00165544]
[1731864996807,0.1272775,90608.0,90607.0,0.00165544]
[1731864997218,8.235e-05,90607.0,90603.0,0.0386959]
[1731864997420,0.415982,90604.0,90603.0,0.0386959]
[1731864998828,0.518422,90604.0,90603.0,0.0386959]
[1731865005213,8.235e-05,90607.0,90599.0,0.055185]
[1731865005414,8.235e-05,90607.0,90600.0,0.05530178]
[1731865014521,8.235e-05,90607.0,90600.0,0.00011778]
[1731865014830,0.055183,90603.0,90600.0,0.00011778]
[1731865016816,0.3608,90606.0,90600.0,0.00011778]
[1731865017323,0.055184,90601.0,90600.0,0.00011778]
[1731865017723,0.415984,90601.0,90600.0,0.00011778]
[1731865018033,0.509784,90601.0,90600.0,0.00011778]
[1731865018332,0.54969292,90601.0,90600.0,0.00011778]
[1731865019636,0.88081292,90601.0,90591.0,0.0051]
[1731865019829,0.055193,90586.0,90585.0,0.0051]
[1731865020031,0.0947775,90584.0,90581.0,0.3608]
[1731865020328,0.055195,90583.0,90581.0,0.3608]
[1731865020734,0.0947775,90584.0,90574.0,0.29043988]
[1731865020735,0.055196,90582.0,90574.0,0.20283988]
[1731865021028,0.0947775,90584.0,90574.0,0.19773988]
[1731865021233,0.055198,90578.0,90572.0,0.19782635]
[1731865021626,0.0947775,90584.0,90575.0,0.19773988]
[1731865022021,0.055195,90583.0,90575.0,0.19773988]
[1731865022529,0.055195,90583.0,90573.0,0.0552]
[1731865022530,0.055195,90583.0,90579.0,0.19773988]
[1731865022839,0.055195,90583.0,90580.0,0.19773988]
[1731865023533,0.055195,90583.0,90575.0,0.3608]
[1731865023534,0.055195,90583.0,90582.0,0.19773988]
[1731865023828,0.055195,90583.0,90581.0,0.26361016]
[1731865024136,0.055195,90583.0,90580.0,0.26361016]
[1731865024536,0.055195,90583.0,90582.0,0.26361016]
[1731865024731,0.055195,90583.0,90577.0,0.32918368]
[1731865024732,0.055195,90583.0,90581.0,0.26361016]
[1731865024934,0.055195,90583.0,90582.0,0.26361016]
[1731865025132,0.0947775,90584.0,90581.0,0.26361016]
[1731865025544,0.055193,90586.0,90581.0,0.26361016]
[1731865025733,0.055193,90586.0,90585.0,0.19786373]
[1731865027341,0.09598144,90586.0,90585.0,0.19786373]
[1731865027544,0.04078844,90586.0,90584.0,0.19786373]
[1731865027741,0.15319,90591.0,90580.0,0.26361016]
[1731865027742,0.055192,90588.0,90585.0,0.19780254]
[1731865028036,0.055192,90588.0,90586.0,0.19780254]
[1731865028425,0.055192,90588.0,90585.0,0.19780254]
[1731865028825,0.055192,90588.0,90586.0,0.19780254]
[1731865029037,0.055192,90587.0,90586.0,0.19780254]
[1731865029231,0.055193,90586.0,90585.0,0.19780254]
[1731865029833,0.055194,90585.0,90584.0,0.19780254]
[1731865030143,0.055194,90585.0,90580.0,0.26361016]
[1731865030729,0.055194,90585.0,90576.0,0.055199]
[1731865030730,0.13177276,90582.0,90576.0,0.055199]
[1731865030930,0.13177276,90583.0,90576.0,0.055199]
[1731865031141,0.13177276,90582.0,90576.0,0.055199]
[1731865031443,0.13177276,90583.0,90576.0,0.055199]
[1731865031630,0.13177276,90584.0,90578.0,0.055197]
[1731865031830,0.13177276,90583.0,90578.0,0.055197]
[1731865032345,0.13177276,90584.0,90578.0,0.0947775]
[1731865032541,0.13177276,90586.0,90584.0,0.055194]
[1731865032733,0.13177276,90587.0,90584.0,0.055194]
[1731865033546,0.13177276,90587.0,90585.0,0.055193]
[1731865034337,0.13177276,90587.0,90578.0,0.0947775]
[1731865034338,0.22977276,90589.0,90584.0,0.3608]
[1731865035529,0.22977276,90589.0,90588.0,0.055192]
[1731865035837,0.13177276,90589.0,90588.0,0.055192]
[1731865036034,0.49295191,90592.0,90591.0,0.05519]
[1731865036235,0.49295191,90592.0,90585.0,0.0947775]
[1731865036236,0.13215191,90596.0,90585.0,0.0325]
[1731865036434,0.13215191,90591.0,90576.0,0.197741]
[1731865036629,0.0947775,90585.0,90580.0,0.055196]
[1731865036837,0.22692941,90585.0,90580.0,0.055196]
[1731865037030,0.22692941,90585.0,90572.0,8.647e-05]
[1731865037234,0.0947775,90577.0,90572.0,8.647e-05]
[1731865037441,0.13215191,90579.0,90575.0,0.055199]
[1731865037640,0.13215191,90578.0,90575.0,0.055199]
[1731865038047,0.13215191,90578.0,90572.0,8.647e-05]
[1731865038048,0.13215191,90578.0,90577.0,0.055198]
[1731865038346,0.09416,90588.0,90572.0,8.647e-05]
[1731865038347,0.13218062,90581.0,90572.0,8.647e-05]
[1731865038647,0.13218062,90581.0,90580.0,0.055196]
[1731865038837,0.25929452,90587.0,90580.0,0.31880616]
[1731865038838,0.09416,90587.0,90580.0,0.31880616]
[1731865039029,0.09416,90587.0,90585.0,0.19775817]
[1731865039235,0.09416,90587.0,90584.0,0.19775817]
[1731865039841,0.09416,90587.0,90585.0,0.19775817]
[1731865041442,0.49298062,90601.0,90585.0,0.3608]
[1731865041642,0.16679057,90606.0,90600.0,0.19776881]
[1731865041643,0.00165605,90606.0,90600.0,0.19776881]
[1731865041837,0.00165605,90606.0,90603.0,0.19772666]
[1731865042035,0.00165605,90606.0,90604.0,0.19772666]
[1731865042338,0.00165605,90606.0,90603.0,0.19772666]
[1731865042541,0.00165605,90606.0,90603.0,0.25290866]
[1731865042746,0.00165605,90606.0,90604.0,0.19772666]
[1731865042949,0.00165605,90606.0,90603.0,0.055182]
[1731865042950,0.00165605,90606.0,90603.0,0.25290866]
[1731865043837,0.00165605,90606.0,90604.0,0.19772666]
[1731865044147,0.00165605,90606.0,90604.0,0.055182]
[1731865045445,0.00165605,90606.0,90604.0,0.1499595]
[1731865050053,0.00165605,90606.0,90605.0,0.055181]
[1731865051142,0.05683705,90606.0,90605.0,0.055181]
[1731865051456,0.00165605,90606.0,90605.0,0.055181]
[1731865052768,0.00165605,90606.0,90602.0,0.3608]
[1731865052769,8.235e-05,90607.0,90602.0,0.3608]
[1731865053057,8.235e-05,90607.0,90606.0,0.055181]
[1731865054345,8.235e-05,90607.0,90595.0,0.19775323]
[1731865054553,0.055181,90606.0,90596.0,0.055187]
[1731865055256,0.055181,90606.0,90593.0,0.3608]
[1731865055459,8.235e-05,90607.0,90593.0,0.3608]
[1731865055770,0.415983,90603.0,90594.0,0.055188]
[1731865055942,0.055183,90602.0,90594.0,0.055188]
[1731865056146,0.055184,90600.0,90593.0,0.3608]
[1731865056546,0.0947775,90602.0,90593.0,0.3608]
[1731865056746,0.45496,90603.0,90593.0,0.3608]
[1731865057455,0.45496,90603.0,90601.0,0.055183]
[1731865058049,0.45496,90603.0,90595.0,0.055187]
[1731865058552,0.45496,90603.0,90599.0,0.055185]
[1731865058553,0.09416,90603.0,90599.0,0.055185]
[1731865060965,0.25929452,90603.0,90599.0,0.055185]
[1731865061361,0.16513452,90602.0,90599.0,0.055185]
[1731865062072,0.25929452,90603.0,90599.0,0.055185]
[1731865063151,0.16513452,90602.0,90599.0,0.055185]
[1731865065161,0.16513452,90601.0,90599.0,0.055185]
[1731865065751,0.16513452,90602.0,90599.0,0.055185]
[1731865066074,0.09416,90603.0,90599.0,0.055185]
[1731865066075,0.16513452,90601.0,90599.0,0.055185]
[1731865066565,0.16513452,90602.0,90599.0,0.055185]
[1731865066766,0.16513452,90601.0,90599.0,0.055185]
[1731865066967,0.16513452,90604.0,90597.0,0.0947775]
[1731865067273,0.13203482,90599.0,90597.0,0.0947775]
[1731865067457,0.13206675,90598.0,90597.0,0.1499635]
[1731865067650,0.13206675,90600.0,90599.0,0.055185]
[1731865067862,0.13206675,90601.0,90599.0,0.055185]
[1731865068063,0.16521687,90607.0,90603.0,0.055183]
[1731865068064,0.13206675,90604.0,90603.0,0.055183]
[1731865068565,8.235e-05,90607.0,90606.0,0.055181]
[1731865073270,8.235e-05,90607.0,90606.0,0.09505473]
[1731865074173,8.235e-05,90607.0,90606.0,0.055181]
[1731865075261,8.235e-05,90607.0,90606.0,0.25297516]
[1731865075969,8.235e-05,90607.0,90606.0,0.055181]
[1731865077179,8.235e-05,90607.0,90606.0,0.25297516]
[1731865078459,8.235e-05,90607.0,90606.0,0.055181]
[1731865079066,8.235e-05,90607.0,90606.0,0.31887459]
[1731865079576,8.235e-05,90607.0,90606.0,0.055181]
[1731865080867,8.235e-05,90607.0,90606.0,0.31896945]
[1731865081063,8.235e-05,90607.0,90606.0,0.055181]
[1731865081780,8.235e-05,90607.0,90606.0,0.31898877]
[1731865081967,8.235e-05,90607.0,90606.0,0.055181]
[1731865082959,8.235e-05,90607.0,90606.0,0.19790377]
[1731865083172,8.235e-05,90607.0,90605.0,0.19790377]
[1731865083671,0.13217186,90607.0,90604.0,0.19790377]
[1731865083974,0.19846412,90607.0,90604.0,0.055182]
[1731865084179,0.05368818,90606.0,90605.0,0.055181]
[1731865084375,8.235e-05,90607.0,90605.0,0.055181]
[1731865084677,0.05377053,90607.0,90605.0,0.055181]
[1731865084867,0.05368818,90606.0,90605.0,0.055181]
[1731865085269,0.19838177,90606.0,90605.0,0.055181]
[1731865085475,0.55918177,90606.0,90580.0,0.3608]
[1731865085671,0.16535277,90593.0,90590.0,0.05519]
[1731865085876,0.0947775,90599.0,90590.0,0.05519]
[1731865085877,0.16535277,90591.0,90590.0,0.05519]
[1731865086077,0.05369103,90592.0,90590.0,0.05519]
[1731865086078,0.16535277,90592.0,90590.0,0.05519]
[1731865086468,0.16535277,90591.0,90590.0,0.05519]
[1731865087874,0.16537799,90592.0,90590.0,0.05519]
[1731865088273,0.16537799,90594.0,90591.0,0.0947775]
[1731865088576,0.16537799,90600.0,90599.0,0.055185]
[1731865088787,0.16537799,90602.0,90593.0,0.22940377]
[1731865088972,0.0947775,90621.0,90593.0,0.22940377]
[1731865088973,0.16537799,90603.0,90601.0,0.415984]
[1731865089173,0.16537799,90606.0,90604.0,0.055182]
[1731865089373,0.16546034,90607.0,90601.0,0.3608]
[1731865089569,0.16546034,90607.0,90606.0,0.055181]
[1731865090075,8.235e-05,90607.0,90606.0,0.055181]
[1731865091183,8.235e-05,90607.0,90606.0,0.78660774]
[1731865091485,8.235e-05,90607.0,90606.0,0.78660708]
[1731865091985,8.235e-05,90607.0,90606.0,0.78660156]
[1731865092294,0.16537799,90630.0,90606.0,0.78660156]
[1731865092295,0.13227769,90621.0,90606.0,1.236656]
[1731865092483,0.16537799,90631.0,90606.0,1.236656]
[1731865092484,0.13227769,90631.0,90620.0,0.3608]
[1731865092675,0.13227769,90631.0,90629.0,0.055166]
[1731865092984,0.055166,90631.0,90629.0,0.055166]
[1731865093192,0.055167,90629.0,90628.0,0.19781486]
[1731865093483,0.05528216,90629.0,90628.0,0.19781486]
[1731865093682,0.05528216,90629.0,90626.0,0.19781486]
[1731865093988,0.00011516,90629.0,90624.0,0.19781486]
[1731865094285,0.00011516,90629.0,90623.0,0.19781486]
[1731865094485,0.16537799,90642.0,90628.0,0.4555775]
[1731865094689,0.2633132,90669.0,90628.0,0.4555775]
[1731865094690,0.16537799,90658.0,90641.0,0.0947775]
[1731865094873,0.3608,90663.0,90650.0,0.19760069]
[1731865095076,0.0308,90657.0,90655.0,0.19760069]
[1731865095291,0.0308,90657.0,90650.0,0.19760069]
[1731865095582,8.106e-05,90656.0,90653.0,0.055152]
[1731865096581,8.106e-05,90656.0,90653.0,0.25275269]
[1731865096888,8.106e-05,90656.0,90653.0,0.055152]
[1731865098486,8.106e-05,90656.0,90654.0,0.055151]
[1731865099183,0.16545905,90656.0,90654.0,0.055151]
[1731865099387,8.106e-05,90656.0,90655.0,0.0947775]
[1731865102890,8.106e-05,90656.0,90654.0,0.055151]
[1731865103383,8.106e-05,90656.0,90654.0,0.1499285]
[1731865107484,8.106e-05,90656.0,90654.0,0.18934011]
[1731865109374,8.106e-05,90656.0,90655.0,0.0947775]
[1731865109990,8.106e-05,90656.0,90655.0,0.1499285]
[1731865113685,8.106e-05,90656.0,90655.0,0.055151]
[1731865114085,8.106e-05,90656.0,90655.0,0.1499285]
[1731865118796,8.106e-05,90656.0,90655.0,0.055151]
[1731865118982,8.106e-05,90656.0,90654.0,0.1969499]
[1731865119188,8.106e-05,90656.0,90655.0,0.0947775]
[1731865120196,8.106e-05,90656.0,90655.0,0.4555775]
[1731865121600,0.19857799,90675.0,90655.0,0.7864975]
[1731865121786,0.0332,90675.0,90670.0,0.1499195]
[1731865122700,0.0315012,90671.0,90670.0,0.1499195]
[1731865123309,0.0315012,90671.0,90670.0,0.055142]
[1731865127389,0.03154161,90671.0,90670.0,0.055142]
[1731865129501,0.03154161,90671.0,90670.0,0.25276713]
[1731865130800,0.03154161,90671.0,90670.0,0.055142]
[1731865131191,0.03154161,90671.0,90670.0,0.31793675]
[1731865131395,0.03154161,90671.0,90670.0,0.055142]
[1731865132194,0.03154161,90671.0,90670.0,0.25275228]
[1731865132712,0.03154161,90671.0,90670.0,0.25275865]
[1731865133498,0.03154161,90671.0,90670.0,0.055142]
[1731865135598,0.03154161,90671.0,90670.0,0.31862004]
[1731865136200,0.03154161,90671.0,90670.0,0.055142]
[1731865136603,0.03154161,90671.0,90670.0,0.1499195]
[1731865143505,0.03154161,90671.0,90670.0,0.055142]
[1731865143707,0.03154161,90671.0,90670.0,0.1499195]
[1731865148710,0.03154161,90671.0,90670.0,0.47963586]
[1731865149118,0.03154161,90671.0,90670.0,0.1499195]
[1731865149321,0.03154161,90671.0,90670.0,0.56565268]
[1731865149923,0.03154161,90671.0,90670.0,0.47087518]
[1731865150109,0.03154161,90671.0,90670.0,0.56565268]
[1731865151315,0.08518608,90671.0,90670.0,0.1499195]
[1731865151915,0.08518608,90671.0,90670.0,0.055142]
[1731865152116,0.08518608,90671.0,90670.0,0.70867779]
[1731865152117,0.08518402,90671.0,90670.0,0.70867779]
[1731865152818,0.19698871,90671.0,90670.0,0.5107195]
[1731865153515,0.03154161,90671.0,90670.0,0.5107195]
[1731865153912,0.00014161,90671.0,90670.0,0.5107195]
[1731865154418,0.00014161,90671.0,90670.0,0.7085982]
[1731865156309,0.00014161,90671.0,90670.0,0.6138207]
[1731865156510,0.00014161,90671.0,90670.0,0.67591519]
[1731865157115,0.00014161,90671.0,90670.0,0.47803649]
[1731865158110,0.16558871,90671.0,90670.0,0.415942]
[1731865158312,0.16558871,90671.0,90670.0,0.47803649]
[1731865158714,0.16558871,90671.0,90670.0,0.61379739]
[1731865158912,0.16558871,90671.0,90670.0,0.415942]
[1731865158913,0.05378707,90671.0,90670.0,0.415942]
[1731865159322,0.00014161,90671.0,90670.0,0.415942]
[1731865160123,0.00014161,90671.0,90670.0,0.74587251]
[1731865160427,0.00014161,90671.0,90670.0,1.15917723]
[1731865160814,0.00014161,90671.0,90670.0,0.47803649]
[1731865162714,0.00014161,90671.0,90666.0,0.38494474]
[1731865162931,0.055144,90666.0,90660.0,0.32980074]
[1731865163224,0.055145,90664.0,90662.0,0.26392988]
[1731865163427,0.055145,90664.0,90658.0,0.06209449]
[1731865163428,0.055145,90664.0,90660.0,0.26392988]
[1731865163819,0.055145,90664.0,90654.0,0.69060074]
[1731865163820,0.1944093,90664.0,90661.0,0.21402988]
[1731865164028,0.055145,90664.0,90663.0,0.19792516]
[1731865164226,0.72558949,90664.0,90649.0,0.0051]
[1731865164523,0.72558949,90664.0,90645.0,0.00010754]
[1731865164524,0.055156,90647.0,90645.0,0.00010754]
[1731865164829,0.032,90646.0,90645.0,0.00010754]
[1731865166928,0.07243636,90646.0,90645.0,0.00010754]
[1731865167224,0.032,90646.0,90645.0,0.00010754]
[1731865168225,0.3928,90646.0,90645.0,0.00010754]
[1731865168532,0.3928,90646.0,90633.0,0.00165498]
[1731865168533,0.055157,90645.0,90633.0,0.00165498]
[1731865168735,0.3608,90637.0,90633.0,0.00165498]
[1731865169032,0.032,90636.0,90633.0,0.00165498]
[1731865170826,0.055164,90635.0,90633.0,0.00165498]
[1731865171223,0.055164,90635.0,90624.0,0.00013646]
[1731865171224,0.055165,90633.0,90624.0,0.00013646]
[1731865171423,0.09470949,90630.0,90624.0,0.00013646]
[1731865172022,0.0308,90629.0,90624.0,0.00013646]
[1731865176426,0.0308,90629.0,90626.0,0.055168]
[1731865176631,0.0308,90629.0,90624.0,0.00013646]
[1731865177635,0.0308,90629.0,90627.0,0.055168]
[1731865179324,0.455,90637.0,90624.0,0.00013646]
[1731865179526,0.00386354,90622.0,90607.0,0.0031631]
[1731865179734,0.55021898,90616.0,90604.0,0.0051]
[1731865179933,0.55021898,90616.0,90586.0,0.0313]
[1731865179934,0.3608,90605.0,90586.0,0.0313]
[1731865180228,0.3608,90605.0,90579.0,0.02208643]
[1731865180229,0.18941898,90587.0,90579.0,0.02208643]
[1731865180434,0.09470949,90580.0,90574.0,0.0031631]
[1731865180733,0.09470949,90580.0,90568.0,0.0636]
[1731865180734,0.00014055,90579.0,90571.0,0.0031631]
[1731865180924,0.00014055,90579.0,90570.0,0.00010571]
[1731865180925,0.09470949,90572.0,90570.0,0.00010571]
[1731865181120,0.0942,90571.0,90570.0,0.00010571]
[1731865181321,0.0942,90571.0,90570.0,0.02259655]